fUST/lending_fUST_20260324
["ID","MTS","AMOUNT","RATE_DAILY","PERIOD"]
[408828542,1774329048064,-151.0,0.0001996,2]
[408828543,1774329048073,-267.727327,0.0001996,2]
[408828544,1774329048082,-151.0,0.0001996,2]
[408828545,1774329048091,-267.727327,0.0001996,2]
[408828546,1774329048101,-267.727327,0.0001996,2]
[408828547,1774329048110,-151.0,0.0001996,2]
[408828548,1774329048119,-151.0,0.0001996,2]
[408828549,1774329048128,-3650.27339536,0.00019966,5]
[408828550,1774329048138,-500.0,0.00019968,2]
[408828551,1774329048147,-500.0,0.00019973,2]
[408828552,1774329048157,-500.0,0.00019973,2]
[408828553,1774329048165,-500.0,0.00019973,2]
[408828554,1774329048175,-47194.26261889,0.0002,2]
[408828555,1774329048187,-7107.2208789,0.0002,2]
[408828556,1774329048199,-11450.0,0.0002,2]
[408828812,1774330237677,-1405.5599481,8.071e-05,2]
[408828842,1774330242885,-3594.4400519,8.071e-05,2]
[408828843,1774330242895,-533.0,8.071e-05,2]
[408828844,1774330242905,-182.119104,8.152e-05,2]
[408828845,1774330242915,-1000.0,0.00013699,2]
[408828846,1774330242924,-2657.18667204,0.00015564,2]
[408828847,1774330242934,-351.61284838,0.00015751,2]
[408828849,1774330242949,-148.38715162,0.00015751,2]
[408828851,1774330242959,-2305.68088032,0.00015805,2]
[408828853,1774330242973,-182.119104,0.00016305,2]
[408828854,1774330242982,-300.0,0.00016382,2]
[408828855,1774330242991,-1200.0,0.00016382,2]
[408828856,1774330243000,-802.03243273,0.00016383,2]
[408828864,1774330246006,-405.0514873,0.00016383,2]
[408828865,1774330246015,-504.57280118,0.00016539,2]
[408828866,1774330246025,-1309.25611317,0.00016637,2]
[408828867,1774330246034,-4147.70232089,0.00017841,2]
[408828868,1774330246043,-1884.18255643,0.0001878,2]
[408828869,1774330246052,-2150.738,0.00018999,2]
[408828870,1774330246064,-2230.315306,0.00019547,2]
[408828871,1774330246073,-472.0,0.00019616,5]
[408828872,1774330246082,-500.0,0.00019663,2]
[408828873,1774330246091,-2484.51772844,0.00019664,2]
[408828979,1774331446098,-1374.72311645,0.00012928,2]
[408828982,1774331798243,-950.75,0.0002,120]
[408828983,1774331857249,9049.25,0.00021,120]
[408829011,1774332638177,-4493.25384793,0.00012073,2]
[408829013,1774332638187,-590.0,0.00012073,2]
[408829015,1774332638197,-509.78971537,0.00012195,2]
[408829017,1774332638207,-156.0,0.00013699,2]
[408829018,1774332638217,-1000.0,0.00013699,2]
[408829019,1774332638227,-500.0,0.00015369,2]
[408829020,1774332638237,-500.0,0.00015369,2]
[408829021,1774332638248,-185.05024111,0.00015369,2]
[408829022,1774332638257,-500.0,0.00015369,2]
[408829023,1774332638267,-500.0,0.00015369,2]
[408829024,1774332638435,-269.38331479,0.00015369,2]
[408829025,1774332638445,-500.0,0.00015369,2]
[408829026,1774332638454,-500.0,0.00015369,2]
[408829027,1774332638463,-379.36988094,0.00015369,2]
[408829028,1774332638472,-500.0,0.00015369,2]
[408829029,1774332638481,-500.0,0.00015369,2]
[408829030,1774332638490,-500.0,0.00015369,2]
[408829031,1774332638499,-500.0,0.00015369,2]
[408829032,1774332638508,-500.0,0.00015369,2]
[408829033,1774332638517,-500.0,0.00015369,2]
[408829034,1774332638527,-500.0,0.00015369,2]
[408829035,1774332638536,-500.0,0.00015369,2]
[408829036,1774332638546,-500.0,0.00015369,2]
[408829037,1774332638557,-500.0,0.00015369,2]
[408829038,1774332638566,-500.0,0.00015369,2]
[408829039,1774332638575,-500.0,0.00015369,2]
[408829040,1774332638585,-500.0,0.00015369,2]
[408829041,1774332638594,-500.0,0.00015369,2]
[408829042,1774332638604,-500.0,0.00015369,2]
[408829043,1774332638613,-500.0,0.00015369,2]
[408829044,1774332638622,-500.0,0.00015369,2]
[408829045,1774332638631,-500.0,0.00015369,2]
[408829046,1774332638644,-500.0,0.00015369,2]
[408829047,1774332638653,-500.0,0.00015369,2]
[408829048,1774332638662,-500.0,0.00015369,2]
[408829049,1774332638672,-500.0,0.00015369,2]
[408829050,1774332638684,-350.0,0.00015369,2]
[408829051,1774332638693,-500.0,0.00015369,2]
[408829052,1774332638703,-500.0,0.00015369,2]
[408829053,1774332638715,-500.0,0.00015369,2]
[408829054,1774332638724,-500.0,0.00015369,2]
[408829055,1774332638734,-500.0,0.00015369,2]
[408829056,1774332638743,-140.34220847,0.00015369,2]
[408829057,1774332638756,-359.65779153,0.00015369,2]
[408829058,1774332638765,-500.0,0.00015369,2]
[408829059,1774332638774,-500.0,0.00015369,2]
[408829060,1774332638784,-500.0,0.00015369,2]
[408829061,1774332638793,-500.0,0.00015369,2]
[408829062,1774332638802,-500.0,0.00015369,2]
[408829063,1774332638811,-500.0,0.00015369,2]
[408829064,1774332638820,-500.0,0.00015369,2]
[408829065,1774332638829,-500.0,0.00015369,2]
[408829066,1774332638838,-500.0,0.00015369,2]
[408829067,1774332638847,-500.0,0.00015369,2]
[408829068,1774332638856,-500.0,0.00015369,2]
[408829069,1774332638866,-500.0,0.00015369,2]
[408829070,1774332638875,-500.0,0.00015369,2]
[408829071,1774332638884,-500.0,0.00015369,2]
[408829072,1774332638894,-500.0,0.00015369,2]
[408829073,1774332638902,-570.14603934,0.00015369,2]
[408829074,1774332638912,-500.0,0.00015369,2]
[408829075,1774332638921,-500.0,0.00015369,2]
[408829076,1774332638931,-500.0,0.00015369,2]
[408829077,1774332638940,-500.0,0.00015369,2]
[408829078,1774332638949,-500.0,0.00015369,2]
[408829079,1774332638958,-500.0,0.00015369,2]
[408829080,1774332638967,-500.0,0.00015369,2]
[408829081,1774332638977,-500.0,0.00015369,2]
[408829082,1774332638986,-500.0,0.00015369,2]
[408829083,1774332638995,-500.0,0.00015369,2]
[408829084,1774332639005,-500.0,0.00015369,2]
[408829085,1774332639015,-957.37873697,0.00015371,2]
[408829086,1774332639025,-957.37873697,0.00015371,2]
[408829087,1774332639035,-957.37873697,0.00015371,2]
[408829088,1774332639044,-957.37873697,0.00015371,2]
[408829089,1774332639054,-957.37873697,0.00015371,2]
[408829090,1774332639063,-957.37873697,0.00015371,2]
[408829091,1774332639073,-957.37873697,0.00015371,2]
[408829092,1774332639083,-254.82416439,0.00015371,2]
[408829104,1774332645780,-702.55457258,0.00015371,2]
[408829105,1774332645789,-957.37873697,0.00015371,2]
[408829107,1774332645799,-957.37873697,0.00015371,2]
[408829108,1774332645807,-549.16440634,0.00015371,2]
[408829109,1774332645820,-408.21433063,0.00015371,2]
[408829110,1774332645830,-867.16757082,0.00015371,2]
[408829111,1774332645846,-90.21116615,0.00015371,2]
[408829113,1774332645856,-957.37873697,0.00015371,2]
[408829114,1774332645865,-841.31337899,0.00015371,2]
[408829122,1774332646244,-116.06535798,0.00015371,2]
[408829123,1774332646254,-957.37873697,0.00015371,2]
[408829124,1774332646264,-957.37873697,0.00015371,2]
[408829125,1774332646274,-1946.59464816,0.00015371,2]
[408829126,1774332646282,-1946.59464816,0.00015371,2]
[408829127,1774332646292,-1946.59464816,0.00015371,2]
[408829128,1774332646302,-1752.79115565,0.00015371,2]
[408829129,1774332646313,-193.80349251,0.00015371,2]
[408829130,1774332646323,-1946.59464816,0.00015371,2]
[408829131,1774332646334,-1946.59464816,0.00015371,2]
[408829132,1774332646344,-1946.59464816,0.00015371,2]
[408829133,1774332646354,-711.40742053,0.00015371,2]
[408829266,1774333843367,-504.0,5.835e-05,2]
[408829267,1774333843396,-179.126357,5.835e-05,2]
[408829278,1774333846483,-250.0,7.277e-05,2]
[408829279,1774333846493,-179.126357,8.753e-05,2]
[408829280,1774333846502,-179.126357,0.0001167,2]
[408829281,1774333846511,-300.0,0.00012518,2]
[408829282,1774333846521,-500.0,0.00012519,2]
[408829283,1774333846530,-500.0,0.00012519,2]
[408829284,1774333846539,-500.0,0.00012519,2]
[408829285,1774333846548,-500.0,0.00012519,2]
[408829286,1774333846557,-500.0,0.00012519,2]
[408829288,1774333846567,-363.26481275,0.00012519,2]
[408829290,1774333846576,-500.0,0.00012519,2]
[408829291,1774333846585,-500.0,0.00012519,2]
[408829292,1774333846594,-500.0,0.00012519,2]
[408829293,1774333846604,-500.0,0.00012519,2]
[408829294,1774333846613,-500.0,0.00012519,2]
[408829295,1774333846623,-486.16544281,0.00012519,2]
[408829296,1774333898184,-316.873643,0.00011776,2]
[408829297,1774333927314,-683.126357,0.00011776,2]
[408829298,1774334072736,300.0,2.008e-05,2]
[408829299,1774334072763,300.0,2.008e-05,2]
[408829300,1774334072789,300.0,2.008e-05,2]
[408829301,1774334072814,186.33,2.008e-05,2]
[408829346,1774335032760,-2906.71867289,9.994e-05,2]
[408829373,1774335038397,-390.88023901,9.994e-05,2]
[408829374,1774335038407,-561.0,0.00010095,2]
[408829375,1774335038417,-300.0,0.00010196,2]
[408829376,1774335038426,-491.0,0.00010196,2]
[408829377,1774335038436,-500.0,0.00010196,2]
[408829378,1774335038446,-500.0,0.00010196,2]
[408829379,1774335038456,-500.0,0.00010196,2]
[408829380,1774335038465,-500.0,0.00010196,2]
[408829381,1774335038475,-500.0,0.00010196,2]
[408829382,1774335038485,-500.0,0.00010196,2]
[408829383,1774335038494,-500.0,0.00010196,2]
[408829384,1774335038504,-500.0,0.00010196,2]
[408829385,1774335038513,-500.0,0.00010196,2]
[408829386,1774335038522,-500.0,0.00010196,2]
[408829387,1774335038532,-617.31888647,0.00010196,2]
[408829388,1774335038542,-500.0,0.00010196,2]
[408829389,1774335038551,-500.0,0.00010196,2]
[408829390,1774335038560,-500.0,0.00010196,2]
[408829391,1774335038570,-500.0,0.00010196,2]
[408829392,1774335038579,-500.0,0.00010196,2]
[408829393,1774335038590,-500.0,0.00010196,2]
[408829394,1774335038599,-500.0,0.00010196,2]
[408829395,1774335038608,-500.0,0.00010196,2]
[408829396,1774335038618,-500.0,0.00010196,2]
[408829397,1774335038627,-500.0,0.00010196,2]
[408829398,1774335038637,-500.0,0.00010196,2]
[408829399,1774335038646,-500.0,0.00010196,2]
[408829400,1774335038655,-500.0,0.00010196,2]
[408829401,1774335038665,-500.0,0.00010196,2]
[408829402,1774335038674,-500.0,0.00010196,2]
[408829403,1774335038683,-500.0,0.00010196,2]
[408829404,1774335038693,-500.0,0.00010196,2]
[408829405,1774335038702,-211.14415486,0.00010196,2]
[408829406,1774335038711,-500.0,0.00010196,2]
[408829407,1774335038721,-500.0,0.00010196,2]
[408829408,1774335038730,-500.0,0.00010196,2]
[408829409,1774335038739,-500.0,0.00010196,2]
[408829410,1774335038749,-500.0,0.00010196,2]
[408829411,1774335038759,-600.0,0.00010196,2]
[408829412,1774335038769,-500.0,0.00010196,2]
[408829413,1774335038778,-500.0,0.00010196,2]
[408829414,1774335038787,-500.0,0.00010196,2]
[408829415,1774335038797,-500.0,0.00010196,2]
[408829416,1774335038806,-500.0,0.00010196,2]
[408829417,1774335038815,-500.0,0.00010196,2]
[408829418,1774335038825,-500.0,0.00010196,2]
[408829419,1774335038834,-6489.37492509,0.00010197,2]
[408829420,1774335038844,-10139.64832045,0.00010197,2]
[408829421,1774335038853,-14586.49248786,0.00010197,2]
[408829422,1774335038862,-2666.43941662,0.00010197,2]
[408829423,1774335038872,-4740.33674067,0.00010197,2]
[408829424,1774335038881,-7399.36938113,0.00010197,2]
[408829425,1774335038891,-16550.50744555,0.00010198,2]
[408829426,1774335038900,-19423.85943262,0.00010198,2]
[408829427,1774335038910,-17446.94620115,0.00010198,2]
[408829488,1774335043483,-5080.13337751,0.00010198,2]
[408829489,1774335043493,-4024.7467749,0.00010198,2]
[408829490,1774335043503,-5093.82013699,0.00010198,2]
[408829491,1774335043512,-1186.19595676,0.00010198,2]
[408829523,1774335046581,-1541.66666667,0.00010198,2]
[408829639,1774335681274,-895.67385935,9.111e-05,2]
[408829731,1774336232668,-988.97827215,8.222e-05,2]
[408829802,1774336244718,-367.29219621,8.222e-05,2]
[408829803,1774336244727,-300.0,8.305e-05,2]
[408829804,1774336244736,-537.0,8.306e-05,2]
[408829805,1774336244745,-3560.80421236,8.306e-05,2]
[408829806,1774336244755,-7609.2868713,8.306e-05,2]
[408829807,1774336244764,-8677.73001233,8.306e-05,2]
[408829813,1774336246852,-377.9502312,8.306e-05,2]
[408829814,1774336246864,-8347.42416641,8.306e-05,2]
[408829815,1774336246880,-2280.42278607,8.306e-05,2]
[408829816,1774336246889,-300.0,9.136e-05,2]
[408829817,1774336246899,-500.0,9.203e-05,2]
[408829818,1774336246910,-203.61350881,9.203e-05,2]
[408829819,1774336246921,-442.56851009,9.688e-05,2]
[408829820,1774336246930,-254.4295819,9.688e-05,2]
[408829821,1774336246939,-457.97324743,9.688e-05,2]
[408829822,1774336246950,-931.54177448,0.00010197,2]
[408829823,1774336246959,-1479.50206869,0.00010197,2]
[408829949,1774337431658,-333.33284861,7.063e-05,2]
[408829952,1774337431667,-5000.0,7.134e-05,2]
[408829954,1774337431677,-521.0,7.134e-05,2]
[408829956,1774337431686,-300.0,8.305e-05,2]
[408829958,1774337431695,-1200.0,8.305e-05,2]
[408829959,1774337431704,-2246.66502922,8.306e-05,2]
[408829962,1774337431714,-22.23560506,8.306e-05,2]
[408829966,1774337431747,-551.55397006,8.306e-05,2]
[408829968,1774337431756,-1032.82123521,8.306e-05,2]
[408829970,1774337431765,-1476.78072759,8.306e-05,2]
[408829972,1774337431777,-359.34591278,8.306e-05,2]
[408829974,1774337431786,-760.37133283,8.306e-05,2]
[408830012,1774337437768,-941.81791522,8.306e-05,2]
[408830013,1774337437779,-1166.75862753,8.306e-05,2]
[408830014,1774337437789,-4131.28494084,8.569e-05,2]
[408830015,1774337437798,-813.36048743,8.871e-05,2]
[408830016,1774337437807,-2599.547105,8.917e-05,2]
[408830017,1774337437816,-250.0,8.986e-05,2]
[408830018,1774337437825,-300.0,9.114e-05,2]
[408830019,1774337437835,-376.0,9.136e-05,2]
[408830020,1774337437844,-5617.51469831,9.338e-05,2]
[408830021,1774337437853,-304.466156,0.00010006,2]
[408830022,1774337437862,-304.466156,0.00010427,2]
[408830023,1774337437871,-562.34649237,0.00010522,5]
[408830024,1774337437880,-304.466156,0.00010848,2]
[408830025,1774337437889,-165.95319697,0.00011008,2]
[408830026,1774337437899,-663.81278788,0.00011008,2]
[408830027,1774337437908,-318.12413678,0.00011008,2]
[408830028,1774337437917,-1493.57877273,0.00011008,2]
[408830029,1774337437926,-151.0,0.00011174,2]
[408830030,1774337437935,-151.0,0.00011174,2]
[408830031,1774337437944,-500.0,0.00011174,2]
[408830032,1774337437954,-304.466156,0.00011269,2]
[408830033,1774337437963,-157.44,0.00011298,2]
[408830034,1774337437971,-210.68968039,0.00011299,2]
[408830035,1774337437981,-379.2414247,0.00011299,2]
[408830036,1774337437990,-200.0,0.000113,2]
[408830037,1774337438000,-461.32894488,0.0001151,2]
[408830038,1774337438009,-500.0,0.0001151,2]
[408830039,1774337438021,-500.0,0.0001151,2]
[408830040,1774337438030,-500.0,0.0001151,2]
[408830041,1774337438039,-500.0,0.0001151,2]
[408830042,1774337438048,-500.0,0.0001151,2]
[408830043,1774337438059,-172.0146884,0.00011515,2]
[408830044,1774337438068,-231.80597834,0.0001159,2]
[408830045,1774337438077,-1405.536212,0.00011676,2]
[408830046,1774337438088,-304.466156,0.0001169,2]
[408830047,1774337438097,-304.466156,0.00012111,2]
[408830048,1774337438106,-2655.25115153,0.00012259,2]
[408830049,1774337438115,-1092.98314456,0.00012291,2]
[408830050,1774337438123,-2249.3859695,0.00012421,5]
[408830051,1774337438132,-1000.0,0.00012519,2]
[408830052,1774337438141,-442.42946844,0.00012519,2]
[408830053,1774337438150,-512.91010097,0.0001252,2]
[408830054,1774337438159,-428.81718297,0.0001252,2]
[408830055,1774337438170,-771.87092934,0.0001252,2]
[408830056,1774337438179,-1372.21498549,0.0001252,2]
[408830057,1774337438189,-180.6007116,0.00012603,2]
[408830058,1774337438202,-572.6234462,0.00012813,2]
[408830059,1774337438215,-180.6007116,0.00012855,7]
[408830060,1774337438227,-151.0,0.00012896,2]
[408830061,1774337438239,-151.0,0.00012896,2]
[408830062,1774337438251,-372.18804791,0.00012897,2]
[408830063,1774337438263,-500.0,0.00012951,2]
[408830064,1774337438273,-503.22244029,0.00012951,2]
[408830065,1774337438283,-694.83104569,0.00013,2]
[408830066,1774337438296,-673.53277027,0.00013014,2]
[408830067,1774337438309,-611.34313485,0.00013179,2]
[408830068,1774337438323,-1100.41764272,0.00013179,2]
[408830069,1774337438336,-587.99489272,0.00013181,5]
[408830070,1774337438348,-180.6007116,0.00013233,14]
[408830071,1774337438360,-151.0,0.00013233,2]
[408830072,1774337438371,-1000.0,0.00013499,2]
[408830073,1774337438383,-2141.94182892,0.00013531,2]
[408830074,1774337438393,-158.814171,0.00013543,2]
[408830075,1774337438404,-500.0,0.00013691,2]
[408830076,1774337438415,-500.0,0.00013691,2]
[408830077,1774337438427,-500.0,0.00013691,2]
[408830078,1774337438439,-500.0,0.00013691,2]
[408830079,1774337438450,-458.55031851,0.00013691,2]
[408830080,1774337438461,-500.0,0.00013691,2]
[408830081,1774337438472,-500.0,0.00013691,2]
[408830082,1774337438483,-500.0,0.00013691,2]
[408830083,1774337438494,-500.0,0.00013691,2]
[408830084,1774337438505,-500.0,0.00013691,2]
[408830085,1774337438516,-224.0206273,0.00013691,2]
[408830086,1774337438527,-500.0,0.00013691,2]
[408830087,1774337438538,-500.0,0.00013691,2]
[408830088,1774337438548,-500.0,0.00013691,2]
[408830089,1774337438560,-500.0,0.00013691,2]
[408830090,1774337438571,-22.18927973,0.00013691,2]
[408830091,1774337438587,-477.81072027,0.00013691,2]
[408830092,1774337438597,-306.66935088,0.00013691,2]
[408830093,1774337438608,-500.0,0.00013691,2]
[408830094,1774337438617,-500.0,0.00013691,2]
[408830095,1774337438627,-500.0,0.00013691,2]
[408830096,1774337438636,-500.0,0.00013691,2]
[408830097,1774337438648,-500.0,0.00013691,2]
[408830098,1774337438658,-500.0,0.00013691,2]
[408830099,1774337438669,-500.0,0.00013691,2]
[408830100,1774337438680,-500.0,0.00013691,2]
[408830101,1774337438692,-500.0,0.00013691,2]
[408830102,1774337438703,-500.0,0.00013691,2]
[408830103,1774337438714,-172.23212593,0.00013691,2]
[408830104,1774337438726,-500.0,0.00013691,2]
[408830105,1774337438736,-500.0,0.00013691,2]
[408830106,1774337438747,-214.881172,0.00013695,2]
[408830107,1774337438759,-567.92384394,0.00013698,2]
[408830108,1774337438771,-500.0,0.00013698,2]
[408830109,1774337438783,-500.0,0.00013698,2]
[408830110,1774337438794,-500.0,0.00013698,2]
[408830111,1774337438805,-573.13980306,0.00013698,2]
[408830112,1774337438817,-500.0,0.00013698,2]
[408830113,1774337438829,-500.0,0.00013698,2]
[408830114,1774337438838,-500.0,0.00013698,2]
[408830115,1774337438848,-500.0,0.00013698,2]
[408830116,1774337438858,-500.0,0.00013698,2]
[408830117,1774337438868,-500.0,0.00013698,2]
[408830118,1774337438878,-500.0,0.00013698,2]
[408830119,1774337438888,-500.0,0.00013698,2]
[408830120,1774337438898,-500.0,0.00013698,2]
[408830121,1774337438910,-500.0,0.00013698,2]
[408830122,1774337438920,-500.0,0.00013698,2]
[408830123,1774337438933,-500.0,0.00013698,2]
[408830124,1774337438944,-500.0,0.00013698,2]
[408830125,1774337438955,-500.0,0.00013698,2]
[408830126,1774337438965,-572.91393114,0.00013698,2]
[408830127,1774337438977,-500.0,0.00013698,2]
[408830128,1774337438988,-500.0,0.00013698,2]
[408830129,1774337438998,-500.0,0.00013698,2]
[408830130,1774337439009,-500.0,0.00013698,2]
[408830131,1774337439024,-500.0,0.00013698,2]
[408830132,1774337439035,-500.0,0.00013698,2]
[408830133,1774337439045,-500.0,0.00013698,2]
[408830134,1774337439055,-500.0,0.00013698,2]
[408830135,1774337439067,-500.0,0.00013698,2]
[408830136,1774337439077,-500.0,0.00013698,2]
[408830137,1774337439087,-500.0,0.00013698,2]
[408830138,1774337439098,-500.0,0.00013698,2]
[408830139,1774337439108,-1000.0,0.00013699,2]
[408830140,1774337439119,-1000.0,0.00013699,2]
[408830141,1774337439130,-3781.0,0.00013699,2]
[408830142,1774337439141,-1500.0,0.00013699,2]
[408830143,1774337439152,-1500.0,0.00013699,2]
[408830144,1774337439163,-1500.0,0.00013699,2]
[408830145,1774337439175,-1500.0,0.00013699,2]
[408830146,1774337439186,-1500.0,0.00013699,2]
[408830147,1774337439197,-1500.0,0.00013699,2]
[408830148,1774337439208,-1500.0,0.00013699,2]
[408830149,1774337439219,-1500.0,0.00013699,2]
[408830150,1774337439230,-1500.0,0.00013699,2]
[408830151,1774337439240,-1502.644247,0.00013699,2]
[408830152,1774337439251,-4144.68109434,0.00013894,2]
[408830153,1774337439261,-1500.0,0.00014047,2]
[408830154,1774337439271,-1954.34173348,0.00014243,2]
[408830155,1774337439282,-160.0,0.000143,2]
[408830156,1774337439292,-500.0,0.00014333,2]
[408830157,1774337439302,-500.0,0.00014333,2]
[408830158,1774337439313,-500.0,0.00014333,2]
[408830159,1774337439323,-176.48762755,0.00014352,2]
[408830160,1774337439334,-2000.0,0.00014595,2]
[408830161,1774337439344,-500.0,0.00015041,2]
[408830162,1774337439355,-500.0,0.00015041,2]
[408830163,1774337439365,-606.39679594,0.00015041,2]
[408830164,1774337439386,-563.37427739,0.00015041,2]
[408830165,1774337439397,-508.47423571,0.00015041,2]
[408830166,1774337439407,-2500.0,0.00015143,2]
[408830167,1774337439418,-1016.97924046,0.00015318,2]
[408830168,1774337439429,-500.0,0.00015526,2]
[408830169,1774337439439,-501.34614617,0.00015565,2]
[408830170,1774337439450,-501.42963649,0.00015565,2]
[408830171,1774337439461,-500.0,0.00015627,2]
[408830172,1774337439471,-500.0,0.0001565,2]
[408830173,1774337439482,-500.0,0.0001565,2]
[408830174,1774337439492,-500.0,0.0001565,2]
[408830175,1774337439503,-3000.0,0.00015691,2]
[408830176,1774337439515,-500.0,0.00015704,2]
[408830177,1774337439528,-479.33814788,0.00015704,2]
[408830178,1774337439539,-502.15652045,0.00015704,2]
[408830179,1774337439550,-500.0,0.00015704,2]
[408830180,1774337439560,-500.0,0.00015704,2]
[408830181,1774337439571,-503.23059014,0.00015734,2]
[408830182,1774337439581,-500.0,0.00015734,2]
[408830184,1774337439591,-500.0,0.00015734,2]
[408830185,1774337439602,-162.380719,0.00015961,2]
[408830186,1774337439612,-151.0,0.00015961,2]
[408830187,1774337439621,-537.6845,0.00015961,2]
[408830188,1774337439632,-2150.738,0.00015961,2]
[408830189,1774337439642,-1000.0,0.00016074,2]
[408830190,1774337439652,-164.684423,0.0001611,2]
[408830191,1774337439663,-1363.593551,0.0001611,2]
[408830192,1774337439674,-502.55141649,0.00016175,2]
[408830193,1774337439684,-349.16500694,0.00016198,2]
[408830194,1774337439694,-256.72744136,0.00016198,2]
[408830195,1774337439705,-3500.0,0.00016239,2]
[408830196,1774337439715,-500.0,0.00016242,2]
[408830197,1774337439725,-500.0,0.00016242,2]
[408830198,1774337439735,-231.92439438,0.00016251,2]
[408830199,1774337439746,-418.56054158,0.00016251,2]
[408830200,1774337439756,-1041.55228318,0.00016251,2]
[408830201,1774337439767,-1041.55228318,0.00016251,2]
[408830202,1774337439778,-1041.55228318,0.00016251,2]
[408830203,1774337439788,-1041.55228318,0.00016251,2]
[408830204,1774337439799,-1041.55228318,0.00016251,2]
[408830205,1774337439809,-1041.55228318,0.00016251,2]
[408830206,1774337439820,-1041.55228318,0.00016251,2]
[408830207,1774337439830,-1041.55228318,0.00016251,2]
[408830208,1774337439841,-1041.55228318,0.00016251,2]
[408830209,1774337439852,-1041.55228318,0.00016251,2]
[408830210,1774337439862,-1041.55228318,0.00016251,2]
[408830211,1774337439872,-1041.55228318,0.00016251,2]
[408830213,1774337439883,-1041.55228318,0.00016251,2]
[408830215,1774337439893,-1041.55228318,0.00016251,2]
[408830216,1774337439904,-1041.55228318,0.00016251,2]
[408830217,1774337439914,-1041.55228318,0.00016251,2]
[408830218,1774337439924,-1041.55228318,0.00016251,2]
[408830219,1774337439934,-1000.0,0.00016252,2]
[408830220,1774337439943,-1000.0,0.00016252,2]
[408830221,1774337439952,-1002.75553404,0.00016252,2]
[408830222,1774337439961,-504.76080461,0.00016282,2]
[408830223,1774337439970,-1000.0,0.00016282,2]
[408830224,1774337439979,-405.18031603,0.00016436,2]
[408830246,1774337440253,-94.81968397,0.00016436,2]
[408830247,1774337440262,-188.61555951,0.00016436,2]
[408830285,1774337442967,-500.0,0.00013691,2]
[408830288,1774337442976,-500.0,0.00013691,2]
[408830290,1774337442986,-311.38444049,0.00016436,2]
[408830292,1774337442996,-500.0,0.00016436,2]
[408830294,1774337443005,-500.0,0.00016436,2]
[408830295,1774337443015,-500.0,0.00016436,2]
[408830297,1774337443028,-607.75870655,0.00016436,2]
[408830300,1774337443038,-227.17971112,0.00016436,2]
[408830302,1774337443048,-458.11846004,0.00016436,2]
[408830304,1774337443058,-500.0,0.00016438,2]
[408830306,1774337443068,-500.0,0.00016438,2]
[408830308,1774337443077,-500.0,0.00016438,2]
[408830310,1774337443086,-500.0,0.00016438,2]
[408830312,1774337443095,-500.0,0.00016438,2]
[408830313,1774337443106,-500.0,0.00016438,2]
[408830316,1774337443116,-500.0,0.00016438,2]
[408830318,1774337443126,-500.0,0.00016438,2]
[408830319,1774337443135,-500.0,0.00016438,2]
[408830320,1774337443144,-500.0,0.00016438,2]
[408830321,1774337443153,-500.0,0.00016438,2]
[408830322,1774337443163,-500.0,0.00016438,2]
[408830323,1774337443173,-500.0,0.00016438,2]
[408830324,1774337443183,-500.0,0.00016438,2]
[408830325,1774337443192,-500.0,0.00016438,2]
[408830326,1774337443201,-500.0,0.00016438,2]
[408830327,1774337443211,-500.0,0.00016438,2]
[408830328,1774337443220,-604.83254239,0.00016438,2]
[408830329,1774337443229,-192.54784,0.00016438,2]
[408830330,1774337443238,-192.54784,0.00016438,2]
[408830331,1774337443247,-192.54784,0.00016438,2]
[408830333,1774337443256,-192.54784,0.00016438,2]